Cogmind - Beta 10.2 @@@ ROGUE MODE // 2020.12.19 @ 18:32:23 Player: CrossedViper Result: Destroyed by H-77 Assassin with High-powered Shotgun Performance ------------- Evolutions (5) 2500 Regions Visited (14) 2800 Robots Destroyed (159) 795 Value Destroyed (7773) 7773 Prototype IDs (52) 1040 Alien Tech Used (0) 0 Bonus (2846) 2846 TOTAL SCORE: 17754 Bonus ------- High Alert Combat Kills 165 Follower Combat Kills 664 Aligned with FarCom 300 Met Warlord at Base 500 MAIN.C Attacked Warlord 500 Warlord Defense Kill 2068 Friendly Fire -1351 Cogmind --------- Core Integrity 0/1000 Matter 280/300 Energy 310/310 System Corruption 6% Temperature Cool (0) Movement Core (200) Ox3 Location -5/Warlord Parts ------- > --- POWER (1) -------- Cooled Deuterium Engine > --- PROPULSION (3) --- (None) > --- UTILITY (9) ------ Advanced Sensor Array Experimental Core Analyzer Advanced Armor Integrity Analyzer > --- WEAPON (4) ------- (None) > --- INVENTORY (4) ---- System Purifier Helical Railgun Helical Railgun Helical Railgun Peak State ------------ > --- POWER ------------ Improved Quantum Reactor > --- PROPULSION ------- Improved Titanium Leg Advanced Myomer Leg Enhanced Biometal Leg > --- UTILITY ---------- Improved Cooling System Large Storage Unit Large Storage Unit Large Storage Unit Large Storage Unit Experimental Core Analyzer Heavy Reflective Plating Advanced Focal Shield > --- WEAPON ----------- Helical Railgun Helical Railgun Helical Railgun 8R-AWN's Boregun > --- INVENTORY -------- Cooled Deuterium Engine Particle Reactor Vortex Chain Reactor Armored Treads Cooled Gravmag System Improved Cooling System Improved Cooling System Improved Energy Well Advanced Sensor Array Experimental Phase Shifter Improved Weapon Shielding Hardened Medium Armor Plating Layered Medium Armor Plating Centrium Light Armor Plating Improved Shock Absorption System Advanced Shield Generator System Purifier Improved Arc Thrower Shock Bomb Launcher Advanced EMP Blaster Advanced EMP Blaster Heavy Shock Bomb Launcher Precision Rocket Launcher [Rating: 117] Favorites ----------- Power Cooled Deuterium Engine Engine Cooled Deuterium Engine Power Core Light Nuclear Core Reactor Improved Quantum Reactor Propulsion Light Treads Treads Light Treads Leg Improved Titanium Leg Hover Unit Cooled Gravmag System Utility Large Storage Unit Device Advanced Focal Shield Storage Large Storage Unit Processor Target Analyzer Hackware System Shield Protection Hardened Medium Armor Plating Weapon Enhanced Autogun Energy Gun Cooled Pulse Rifle Energy Cannon Cooled Particle Cannon Ballistic Gun Enhanced Autogun Ballistic Cannon Light Cannon Launcher Grenade Launcher Impact Weapon Power Maul Build | -11 -10 -10 -9 -9 -9 -8 -8 -8 -7 -6 -5 -5 -5 -5 ------- Run | Scr Mat Min Mat Min Exi Min Mat Sto Fac Fac Fac Upp Upp War Slots Evolved 10 | . . . 2 . . . 2 . 2 2 2 . . . Power . | . . . . . . . . . . . . . . . Propulsion 1 | . . . . . . . . . . 1 . . . . Utility 7 | . . . 2 . . . 2 . 2 . 1 . . . Weapon 2 | . . . . . . . . . . 1 1 . . . Parts Attached 208 | . 22 4 9 3 19 7 5 49 16 10 2 11 5 46 Power 21 | . 2 1 3 1 2 . . 5 2 1 . . . 4 Engine 16 | . 2 1 2 1 2 . . 4 2 1 . . . 1 Core 3 | . . . 1 . . . . 1 . . . . . 1 Reactor 2 | . . . . . . . . . . . . . . 2 Propulsion 37 | . 7 . 1 . 4 . 2 12 2 3 . . . 6 Treads 12 | . 3 . 1 . . . 2 3 2 . . . . 1 Leg 21 | . 4 . . . 4 . . 6 . 3 . . . 4 Wheel . | . . . . . . . . . . . . . . . Hover 4 | . . . . . . . . 3 . . . . . 1 Flight . | . . . . . . . . . . . . . . . Utility 58 | . 4 . 2 . 6 1 3 9 8 2 1 3 1 18 Device 21 | . 2 . . . 2 . 1 4 2 . 1 2 1 6 Storage 9 | . 2 . . . 1 . 2 2 1 . . . . 1 Processor 7 | . . . . . . 1 . 1 1 1 . . . 3 Hackware 1 | . . . . . . . . . 1 . . . . . Protection 20 | . . . 2 . 3 . . 2 3 1 . 1 . 8 Artifact . | . . . . . . . . . . . . . . . Weapon 92 | . 9 3 3 2 7 6 . 23 4 4 1 8 4 18 Energy Gun 17 | . . 1 . . . 3 . 7 2 2 . . . 2 Energy Cannon 10 | . . . . . 1 . . . 1 . . 3 1 4 Ballistic Gun 41 | . 3 1 3 1 5 1 . 11 1 2 1 3 3 6 Ballistic Cannon 2 | . 2 . . . . . . . . . . . . . Launcher 19 | . 4 1 . 1 . 2 . 4 . . . 2 . 5 Special Weapon 1 | . . . . . . . . . . . . . . 1 Impact Weapon 2 | . . . . . 1 . . 1 . . . . . . Slashing Weapon . | . . . . . . . . . . . . . . . Piercing Weapon . | . . . . . . . . . . . . . . . Special Melee Weapon . | . . . . . . . . . . . . . . . Unidentified Prototypes 29 | . . . 2 . 2 . . 13 3 1 . . . 8 Parts Lost 52 | . 1 2 . . 7 . . 11 5 . . . . 26 Power 6 | . . . . . 1 . . 2 . . . . . 3 Propulsion 13 | . 1 . . . . . . 5 1 . . . . 6 Utility 15 | . . . . . 3 . . 1 3 . . . . 8 Weapon 18 | . . 2 . . 3 . . 3 1 . . . . 9 Highest Loss Streak 19 | . 1 1 . . 4 . . 5 2 . . . . 19 Average Slot Usage (%) 96 | . 85 94 97 100 95 95 99 95 97 100 99 100 100 97 Engine 7 | . 13 14 3 10 10 11 9 8 7 6 5 5 5 4 Treads 9 | . 10 28 22 22 13 . 16 13 14 . . . . . Leg 10 | . 14 . . . 8 22 1 3 . 20 17 17 17 16 Device 7 | . 5 . . . 2 11 14 12 8 2 4 10 11 10 Storage 25 | . 18 28 22 22 22 22 29 32 30 26 23 23 23 22 Processor 4 | . . . . . . 7 9 2 4 10 11 5 5 6 Protection 9 | . . . 20 22 18 . . 3 12 13 11 11 11 9 Energy Gun 4 | . 1 9 2 . . 20 18 3 8 6 5 5 2 . Energy Cannon 1 | . . . . . . . . . . 6 5 4 2 1 Ballistic Gun 11 | . 8 3 18 21 18 . . 13 5 6 11 10 16 19 Ballistic Cannon 1 | . 9 9 . . . . . . . . . . . . Naked Turns . | . . . . . . . . . . . . . . . Heaviest Build 125 | 13 40 43 54 56 71 48 80 94 107 110 111 117 118 125 Greatest Support 80 | 20 40 40 40 40 60 60 60 45 43 70 70 70 70 80 Greatest Overweight (x) 4 | . 4 1 1 1 1 . 1 3 4 1 1 1 1 4 Average Overweight (x) 1 | . . . . 1 . . . 1 2 1 1 1 1 1 Largest Inventory Capacity 28 | . 16 16 16 16 16 16 28 28 28 28 28 28 28 28 Average Capacity 23 | . 9 16 16 16 16 16 23 25 28 28 28 28 28 27 Most Carried 28 | . 16 16 16 16 16 12 13 28 28 28 28 28 28 28 Average Carried 22 | . 6 15 15 15 14 11 12 23 27 26 27 27 27 26 Final Capacity 28 | 6 16 16 16 16 16 16 22 28 28 28 28 28 28 4 Final Carried 28 | 6 16 16 16 16 11 12 13 27 28 28 28 28 28 4 Class Distribution -------------------- 36% | Hauler-Tank 32% | Mutant 26% | Hauler-Mutant 3% | Commander-Mutant Dominant Class ---------------- Mutant | -10/Materials Mutant | -10/Mines Mutant | -9/Materials Mutant | -9/Mines Mutant | -9/Exiles Mutant | -8/Mines Hauler-Mutant | -8/Materials Hauler-Mutant | -8/Storage Hauler-Mutant | -7/Factory Hauler-Tank | -6/Factory Hauler-Tank | -5/Factory Hauler-Tank | -5/Upper Caves Hauler-Tank | -5/Upper Caves Hauler-Tank | -5/Warlord Resources | -11 -10 -10 -9 -9 -9 -8 -8 -8 -7 -6 -5 -5 -5 -5 ----------- Run | Scr Mat Min Mat Min Exi Min Mat Sto Fac Fac Fac Upp Upp War Matter Collected 4724 | 195 409 216 112 84 316 101 . 1349 238 375 . 236 236 857 Remotely . | . . . . . . . . . . . . . . . Salvage Created 7750 | . 355 114 158 60 234 133 . 1506 1442 549 78 691 547 1883 Parts 360 | . 28 4 6 1 4 22 . 104 64 21 2 17 20 67 Haulers Intercepted 10 | . 1 . 1 . . . . 5 2 1 . . . . Recyclers Shooed 8 | . 2 1 . . . . . . 2 3 . . . . Parts Field Recycled . | . . . . . . . . . . . . . . . Retrieved Matter . | . . . . . . . . . . . . . . . Parts Self-Destructed 118 | . . . . . . . . . . . . 8 34 76 Prevented 39 | . . . . . . . . . . . . 8 . 31 Kills | -11 -10 -10 -9 -9 -9 -8 -8 -8 -7 -6 -5 -5 -5 -5 ------- Run | Scr Mat Min Mat Min Exi Min Mat Sto Fac Fac Fac Upp Upp War Combat Hostiles Destroyed 124 | . 10 3 3 6 3 7 . 23 22 6 1 11 7 22 Melee 2 | . . . . . 1 . . . . . . . . 1 Guns 63 | . 2 2 3 5 . 1 . 19 22 1 . 2 4 2 Cannons 13 | . 1 1 . . 1 . . . . 4 1 . 3 2 AOE 37 | . 7 . . 1 1 6 . 4 . . . 6 . 12 Classes Destroyed 20 | . 7 . . 2 . 1 . 2 2 . . 2 . 4 Worker 13 | . 1 1 . 1 . 3 . 4 2 1 . . . . Builder 7 | . . . . . . 1 . 4 2 . . . . . Hauler 10 | . 1 . 1 . . . . 5 2 1 . . . . Recycler 6 | . 2 . . . . . . 1 2 1 . . . . Mechanic 2 | . . . . . . . . 1 . . . . . 1 Operator 1 | . 1 . . . . . . . . . . . . . Watcher 1 | . 1 . . . . . . . . . . . . . Swarmer 24 | . 3 . . 1 . 7 . 3 . . . 3 5 2 Saboteur 1 | . . . . . . . . . . . . . . 1 Grunt 58 | . 7 3 3 . . . . 10 15 3 . 3 2 12 Brawler 2 | . . . . . . . . . . . . 1 . 1 Duelist 2 | . . . . . . . . . . . . 2 . . Protector 1 | . . . . . . . . . . . . . . 1 Sentry 15 | . . . . . . . . 10 2 . 1 2 . . Demolisher 1 | . . . . 1 . . . . . . . . . . Hunter 2 | . . . . . . . . . 1 1 . . . . Programmer 6 | . . . . . . . . . 4 2 . . . . Executioner 2 | . . . . . . . . . . . . . . 2 Assembled 11 | . . . . 4 7 . . . . . . . . . Knight 2 | . . . . . . . . . . . . . . 2 Best Kill Streak 9 | . 7 2 2 4 2 4 . 7 5 2 1 9 3 9 Combat Bots Only 9 | . 5 2 2 4 2 4 . 5 5 2 1 9 3 8 Max Kills in Single Turn 5 | . 2 1 1 1 5 4 . 2 2 1 1 3 2 3 Gunslinging 1 | . . . . . . . . . 1 . . . . . Exploded 4 | . 2 . . 1 1 4 . 1 . . . 3 . 3 Melee 1 | . . . . . 1 . . . . . . . . 1 Uniques/NPCs Destroyed 3 | . . . . . 1 . . . . . . . . 2 8R-AWN (-9/Exiles) Fake God Mode (-5/Warlord) Warlord (-5/Warlord) Combat | -11 -10 -10 -9 -9 -9 -8 -8 -8 -7 -6 -5 -5 -5 -5 -------- Run | Scr Mat Min Mat Min Exi Min Mat Sto Fac Fac Fac Upp Upp War Damage Taken 13265 | . 609 80 104 604 1746 122 15 2000 1435 477 45 311 275 5442 Core 1899 | . 50 . 10 56 215 26 . 350 162 24 . 12 . 994 Absorbed by Shields 132 | . . . . . . . . 93 39 . . . . . Core Remaining (%) 68 | 100 . 80 . . . 23 . 36 76 97 . . . . Volleys Fired 455 | . 41 12 15 18 54 9 . 104 84 31 4 8 18 57 Largest 4 | . 2 2 2 2 2 2 . 2 2 3 4 4 4 4 Hottest 250 | . 70 100 50 50 250 126 . 126 126 80 105 110 170 230 Shots Fired 959 | . 64 21 30 35 93 12 . 183 166 73 13 22 71 176 Gun 791 | . 27 9 30 34 89 10 . 175 161 43 9 11 60 133 Cannon 116 | . 23 10 . . 4 . . . 5 30 4 4 11 25 Launcher 52 | . 14 2 . 1 . 2 . 8 . . . 7 . 18 Special . | . . . . . . . . . . . . . . . Kinetic 653 | . 49 11 30 34 89 4 . 153 68 21 8 8 50 128 Thermal 223 | . 1 8 . . 4 6 . 14 98 52 5 7 21 7 Explosive 26 | . 14 2 . 1 . 2 . 7 . . . . . . Electromagnetic 36 | . . . . . . . . 9 . . . 7 . 20 Entropic 21 | . . . . . . . . . . . . . . 21 Robot Hit Streak 31 | . 6 6 15 4 16 4 . 8 10 11 6 9 10 31 Robot Miss Streak 5 | . 3 3 2 3 4 4 . 4 5 4 1 2 3 4 Penetration Max 1 | . . . . . . . . 1 1 . . . 1 1 Secondary Targets 7 | . . . 1 1 . . . . 5 . . . . . Max Gunslinging Chain 1 | . . . 1 1 . . . . 1 . . . . . Shots Hit Robots 640 | . 32 15 24 17 91 7 . 102 113 50 6 14 39 130 Core Hits 359 | . 29 17 6 11 23 11 . 62 66 18 3 16 16 81 Critical Hits 20 | . . . 1 . . . . 2 2 2 . 1 4 8 Critical Kills 5 | . . . . . . . . 2 . 1 . . 1 1 Critical Parts Destroyed 10 | . . . 1 . . . . . 2 1 . 1 3 2 Melee Attacks 23 | . . . . . 22 . . 1 . . . . . . Impact 23 | . . . . . 22 . . 1 . . . . . . Slashing . | . . . . . . . . . . . . . . . Piercing . | . . . . . . . . . . . . . . . Sneak Attacks . | . . . . . . . . . . . . . . . Combat Hostiles . | . . . . . . . . . . . . . . . Follow-up Attacks . | . . . . . . . . . . . . . . . Damage Inflicted 18606 | . 1129 200 430 320 2368 433 . 2158 2901 1111 125 954 894 5583 Guns 10131 | . 215 114 430 279 1209 106 . 1614 2800 590 43 110 731 1890 Cannons 2328 | . 135 70 . . 79 . . . 80 511 82 54 163 1154 Explosions 5322 | . 770 16 . 41 305 327 . 534 . . . 790 . 2539 Melee 546 | . . . . . 546 . . . . . . . . . Ramming 279 | . 9 . . . 229 . . 10 21 10 . . . . Kinetic 7785 | . 338 81 430 279 1209 22 . 1364 1240 248 43 72 618 1841 Thermal 4235 | . 12 103 . . 384 84 . 224 1640 853 82 92 276 485 Explosive 1647 | . 770 16 . 41 . 327 . 493 . . . . . . Electromagnetic 2984 | . . . . . . . . 67 . . . 790 . 2127 Impact 546 | . . . . . 546 . . . . . . . . . Slashing . | . . . . . . . . . . . . . . . Piercing . | . . . . . . . . . . . . . . . Entropic 1130 | . . . . . . . . . . . . . . 1130 Highest Corruption 10 | . 10 10 . . 2 2 . . 3 3 . . . 6 Average Corruption 4 | . 9 10 . . 2 2 . . 1 1 . . . 4 Corruption Purged . | . . . . . . . . . . . . . . . Effects 110 | . 26 40 . . 1 3 . . 19 5 . . . 16 Message Errors 24 | . 5 9 . . 1 1 . . 4 2 . . . 2 Matter Fused 12 | . . 8 . . . . . . 1 1 . . . 2 Heat Flow Errors 16 | . 4 8 . . . 1 . . 1 . . . . 2 Energy Discharges 11 | . 1 4 . . . . . . 4 . . . . 2 Data Loss (minor) 17 | . 5 5 . . . 1 . . 3 1 . . . 2 Data Loss (major) 4 | . 3 1 . . . . . . . . . . . . Misfires 2 | . 1 1 . . . . . . . . . . . . Alerts 1 | . 1 . . . . . . . . . . . . . Misdirections 4 | . 3 1 . . . . . . . . . . . . Targeting Errors 17 | . 3 3 . . . . . . 6 . . . . 5 Weapon Failures 2 | . . . . . . . . . . 1 . . . 1 Overload Shots 1 | . . . . . . . . . . . . . . 1 Overflow Damage 334 | . 4 . . . 110 . . 49 . 30 . 36 . 105 Projectiles 51 | . 4 . . . 17 . . . . 30 . . . . Explosions 190 | . . . . . . . . 49 . . . 36 . 105 Melee 93 | . . . . . 93 . . . . . . . . . Knockbacks 11 | . 1 2 . . 6 . . . 1 1 . . . . Impact 8 | . . . . . 6 . . . 1 1 . . . . Kinetic 3 | . 1 2 . . . . . . . . . . . . Secondary . | . . . . . . . . . . . . . . . Self-Inflicted Damage 513 | . 71 . . 23 69 6 . 119 . 5 . . . 220 Shots 16 | . 2 . . 1 1 1 . 3 . . . . . 8 Rammed 26 | . 3 . . . 18 . . 2 2 1 . . . . Targets Rammed 36 | . 3 . . . 28 . . 2 2 1 . . . . Kicked 10 | . . . . . 10 . . . . . . . . . Crushed . | . . . . . . . . . . . . . . . Highest Temperature 537 | . 197 279 181 280 537 249 . 375 198 57 36 99 410 274 Average Temperature 96 | . 52 111 74 127 173 130 . 47 82 16 18 37 132 71 Received Heat Transfer 2280 | . 240 48 36 100 . 9 9 772 625 57 . 63 63 258 Effects 5 | . . 1 . . 4 . . . . . . . . . Shutdowns 1 | . . . . . 1 . . . . . . . . . Energy Bleed 1 | . . 1 . . . . . . . . . . . . Interference 2 | . . . . . 2 . . . . . . . . . Damage (minor) 1 | . . . . . 1 . . . . . . . . . Siege Activations . | . . . . . . . . . . . . . . . Robots Corrupted 9 | . . . . . . . . . . . . 3 . 6 Combat Hostiles 8 | . . . . . . . . . . . . 3 . 5 Parts Fried 25 | . 1 . . . . . . . . . . 9 . 15 Impact Corruptions 8 | . . . . . 8 . . . . . . . . . Robots Melted 1 | . . . . . . . . . . 1 . . . . Combat Hostiles 1 | . . . . . . . . . . 1 . . . . Parts Melted 15 | . . . . . . . . . 4 8 . . 3 . Heat Transferred 7401 | . 37 125 . . 1760 185 . 296 2479 1332 111 148 457 471 Parts Sabotaged 7 | . . . . . . . . . . . . . . 7 Parts Stolen . | . . . . . . . . . . . . . . . Parts Stripped . | . . . . . . . . . . . . . . . Power Chain Reactions 10 | . . . . . . . . 1 . . . 1 . 8 Missiles Intercepted . | . . . . . . . . . . . . . . . Alert | -11 -10 -10 -9 -9 -9 -8 -8 -8 -7 -6 -5 -5 -5 -5 ------- Run | Scr Mat Min Mat Min Exi Min Mat Sto Fac Fac Fac Upp Upp War Peak Influence 766 | . 316 50 171 113 . 187 27 766 486 312 155 . . . Initial 209 | . . 10 . 58 . . 27 11 209 203 65 . . . Average 210 | . 175 9 68 72 . 111 27 462 252 177 98 . . . Maximum Alert Level 3 | . 1 . . . . . . 3 2 1 . . . . Low Security (%) 54 | . 69 100 100 100 . 100 100 5 23 49 100 . . . Level 1 28 | . 30 . . . . . . 24 66 50 . . . . Level 2 14 | . . . . . . . . 56 9 . . . . . Level 3 2 | . . . . . . . . 13 . . . . . . Level 4 . | . . . . . . . . . . . . . . . Level 5 . | . . . . . . . . . . . . . . . High Security . | . . . . . . . . . . . . . . . Max Security . | . . . . . . . . . . . . . . . Squads Dispatched 36 | . . . 6 1 . . 1 9 12 5 2 . . . Investigation 9 | . . . 3 1 . . . . 3 1 1 . . . Extermination 5 | . . . . . . . . . 3 2 . . . . Reinforcement 16 | . . . 3 . . . 1 5 5 1 1 . . . Assault 1 | . . . . . . . . 1 . . . . . . Garrison 5 | . . . . . . . . 3 1 1 . . . . Intercept . | . . . . . . . . . . . . . . . Construction Impeded 2 | . . . . . . . . 1 1 . . . . . Haulers Reinforced 1 | . . . . . . . . . 1 . . . . . Stealth | -11 -10 -10 -9 -9 -9 -8 -8 -8 -7 -6 -5 -5 -5 -5 --------- Run | Scr Mat Min Mat Min Exi Min Mat Sto Fac Fac Fac Upp Upp War Distress Signals 6 | . . . . . . . . 2 3 . . . . 1 Communications Jammed . | . . . . . . . . . . . . . . . Distress Signals . | . . . . . . . . . . . . . . . Times Spotted 232 | . 17 3 11 11 3 10 3 50 43 11 6 14 14 36 Peak Tracking Total 11 | . 5 2 5 10 3 4 2 6 5 3 5 9 6 11 Tactical Retreats 14 | . 1 . . 1 . 2 . 1 9 . . . . . Traps | -11 -10 -10 -9 -9 -9 -8 -8 -8 -7 -6 -5 -5 -5 -5 ------- Run | Scr Mat Min Mat Min Exi Min Mat Sto Fac Fac Fac Upp Upp War Traps Triggered 13 | . 9 . . . . . . 1 1 1 . . . 1 Indirectly . | . . . . . . . . . . . . . . . Trap Hack Attempts . | . . . . . . . . . . . . . . . Triggered . | . . . . . . . . . . . . . . . Disarmed . | . . . . . . . . . . . . . . . Reprogrammed . | . . . . . . . . . . . . . . . Reused . | . . . . . . . . . . . . . . . Traps Extracted . | . . . . . . . . . . . . . . . Installed . | . . . . . . . . . . . . . . . Triggered 10 | . . . . . . . . . . . . . . 10 Machines | -11 -10 -10 -9 -9 -9 -8 -8 -8 -7 -6 -5 -5 -5 -5 ---------- Run | Scr Mat Min Mat Min Exi Min Mat Sto Fac Fac Fac Upp Upp War Machines Disabled 23 | . 1 . 2 . 5 . . 9 2 . . 1 . 3 Max in Single Turn 2 | . 1 . 1 . 2 . . 1 1 . . 1 . 1 Garrison Access 1 | . . . . . . . . . . 1 . . . . Machines Sabotaged . | . . . . . . . . . . . . . . . Garrisons Compromised . | . . . . . . . . . . . . . . . Overloaded Fab Kills . | . . . . . . . . . . . . . . . Fab Network Shutdowns . | . . . . . . . . . . . . . . . Hacking | -11 -10 -10 -9 -9 -9 -8 -8 -8 -7 -6 -5 -5 -5 -5 --------- Run | Scr Mat Min Mat Min Exi Min Mat Sto Fac Fac Fac Upp Upp War Machines Accessed 33 | . 3 . 3 1 2 . 1 5 6 2 1 3 . 6 Terminals 13 | . 3 . 3 . . . . 3 4 . . . . . Fabricators . | . . . . . . . . . . . . . . . Repair Stations 3 | . . . . . . . . 2 1 . . . . . Recycling Units 2 | . . . . . . . . . . 1 1 . . . Scanalyzers 2 | . . . . . . . 1 . 1 . . . . . Garrison Access 1 | . . . . . . . . . . 1 . . . . Total Hacks 76 | . 5 . 10 1 2 . 2 16 15 3 1 6 . 15 Successful 47 | . 4 . . 1 2 . . 11 4 3 1 6 . 15 Failed 29 | . 1 . 10 . . . 2 5 11 . . . . . Catastrophic 14 | . 1 . 7 . . . . 2 4 . . . . . Database Lockouts . | . . . . . . . . . . . . . . . Manual 23 | . 2 . 10 . 1 . . 3 2 3 2 . . . Terminals 31 | . 5 . 10 . . . . 7 9 . . . . . Fabricators . | . . . . . . . . . . . . . . . Repair Stations 12 | . . . . . . . . 9 3 . . . . . Recycling Units 3 | . . . . . . . . . . 2 1 . . . Scanalyzers 5 | . . . . . . . 2 . 3 . . . . . Garrison Access 1 | . . . . . . . . . . 1 . . . . Terminal Hacks 35 | . 3 . . 1 2 . . 6 2 . . 6 . 15 Record 19 | . . . . . 1 . . . . . . 4 . 14 Open Door 6 | . . . . 1 . . . 2 . . . 2 . 1 Branch Access Points 1 | . 1 . . . . . . . . . . . . . Terminal Index 1 | . 1 . . . . . . . . . . . . . Repair Station Index 1 | . . . . . . . . . 1 . . . . . Alert Level 1 | . . . . . . . . 1 . . . . . . Unreport Threat 3 | . . . . . . . . 2 1 . . . . . Locate Traps 1 | . . . . . . . . 1 . . . . . . Reinforcement Status 1 | . 1 . . . . . . . . . . . . . EX-Prototype ID Bank 1 | . . . . . 1 . . . . . . . . . Fabricator Hacks . | . . . . . . . . . . . . . . . Repair Station Hacks 6 | . . . . . . . . 5 1 . . . . . Scan Component 5 | . . . . . . . . 4 1 . . . . . Repair 1 | . . . . . . . . 1 . . . . . . Recycling Unit Hacks . | . . . . . . . . . . . . . . . Scanalyzer 1 | . . . . . . . . . 1 . . . . . Insert Component 1 | . . . . . . . . . 1 . . . . . Garrison Access Hacks 1 | . . . . . . . . . . 1 . . . . Seal Access 1 | . . . . . . . . . . 1 . . . . Unauthorized Hacks 4 | . 1 . . . . . . . . 2 1 . . . Terminals 1 | . 1 . . . . . . . . . . . . . Track 1 | . 1 . . . . . . . . . . . . . Fabricators . | . . . . . . . . . . . . . . . Repair Stations . | . . . . . . . . . . . . . . . Recycling Units 3 | . . . . . . . . . . 2 1 . . . Recyclers 1 | . . . . . . . . . . 1 . . . . Tunnel 2 | . . . . . . . . . . 1 1 . . . Scanalyzers . | . . . . . . . . . . . . . . . Garrison Access . | . . . . . . . . . . . . . . . Data Cores Recovered . | . . . . . . . . . . . . . . . Used . | . . . . . . . . . . . . . . . Hacking Detections 18 | . 3 . 3 . . . 1 4 6 . 1 . . . Full Trace Events 6 | . . . 3 . . . . . 3 . . . . . Feedback Events . | . . . . . . . . . . . . . . . Feedback Blocked . | . . . . . . . . . . . . . . . Robot Schematics Acquired . | . . . . . . . . . . . . . . . Robots Built . | . . . . . . . . . . . . . . . Matter . | . . . . . . . . . . . . . . . Time . | . . . . . . . . . . . . . . . Total Robot Build Rating . | . . . . . . . . . . . . . . . Part Schematics Acquired . | . . . . . . . . . . . . . . . Parts Built . | . . . . . . . . . . . . . . . Matter . | . . . . . . . . . . . . . . . Time . | . . . . . . . . . . . . . . . Total Part Build Rating . | . . . . . . . . . . . . . . . Parts Repaired 1 | . . . . . . . . 1 . . . . . . Time 78 | . . . . . . . . 78 . . . . . . Parts Recycled . | . . . . . . . . . . . . . . . Recycled Matter . | . . . . . . . . . . . . . . . Retrieved Matter . | . . . . . . . . . . . . . . . Retrieved Components . | . . . . . . . . . . . . . . . Parts Scanalyzed 1 | . . . . . . . . . 1 . . . . . Part Schematics Acquired . | . . . . . . . . . . . . . . . Parts Damaged . | . . . . . . . . . . . . . . . Bothacking | -11 -10 -10 -9 -9 -9 -8 -8 -8 -7 -6 -5 -5 -5 -5 ------------ Run | Scr Mat Min Mat Min Exi Min Mat Sto Fac Fac Fac Upp Upp War Used RIF Installer . | . . . . . . . . . . . . . . . Robots Hacked . | . . . . . . . . . . . . . . . Non-combat . | . . . . . . . . . . . . . . . Combat . | . . . . . . . . . . . . . . . Robot Hacks Applied . | . . . . . . . . . . . . . . . Relay Couplers Released . | . . . . . . . . . . . . . . . Robots Rewired 2 | . . . . . . . . . . . . 2 . . Allies Hacked . | . . . . . . . . . . . . . . . Hacks Repelled . | . . . . . . . . . . . . . . . Allies | -11 -10 -10 -9 -9 -9 -8 -8 -8 -7 -6 -5 -5 -5 -5 -------- Run | Scr Mat Min Mat Min Exi Min Mat Sto Fac Fac Fac Upp Upp War Total Allies 19 | . . 3 . . . . . 11 . 3 . 2 . . Largest Group 10 | . . 3 1 . . . . 10 . 3 . 2 2 2 Highest-Rated Group 173 | . . 40 16 . . . . 173 . 93 . 58 58 58 Highest-Rated Ally 99 | . . 16 16 . . . . 99 . 31 . 29 29 29 Total Orders 2 | . . . . . . . . 1 . . . . . 1 STAY 2 | . . . . . . . . 1 . . . . . 1 Ally Attacks 138 | . . 6 12 . . . . 44 . 38 . 3 28 7 Total Damage 2159 | . . 81 153 . . . . 722 . 669 . 56 379 99 Kills 31 | . . 2 3 . . . . 11 . 4 . 3 8 . Allies Corrupted . | . . . . . . . . . . . . . . . Allies Melted . | . . . . . . . . . . . . . . . Intel | -11 -10 -10 -9 -9 -9 -8 -8 -8 -7 -6 -5 -5 -5 -5 ------- Run | Scr Mat Min Mat Min Exi Min Mat Sto Fac Fac Fac Upp Upp War Robot Analysis Total . | . . . . . . . . . . . . . . . Derelict Logs Recovered 5 | . . 1 . 1 . . . . . . . 2 1 . Drone Launches . | . . . . . . . . . . . . . . . Drone Recoveries . | . . . . . . . . . . . . . . . Exploration | -11 -10 -10 -9 -9 -9 -8 -8 -8 -7 -6 -5 -5 -5 -5 ------------- Run | Scr Mat Min Mat Min Exi Min Mat Sto Fac Fac Fac Upp Upp War Turns Passed 12585 | . 827 1059 322 403 960 551 110 1670 1619 960 328 1285 1056 1435 Spaces Moved 6371 | 1 474 368 150 198 460 433 59 666 649 515 199 782 636 781 Core 1 | . 1 . . . . . . . . . . . . . Treads 2497 | . 222 368 150 198 316 . 53 537 649 . . . . 4 Legs 3867 | 1 251 . . . 144 433 6 129 . 515 199 782 636 771 Wheels . | . . . . . . . . . . . . . . . Hover 6 | . . . . . . . . . . . . . . 6 Flight . | . . . . . . . . . . . . . . . Fastest Speed 45 | 120 120 160 160 180 45 120 120 150 200 156 156 156 156 50 Average Speed 163 | 120 140 175 178 180 156 120 174 189 202 156 156 156 156 155 Slowest Speed 250 | 120 250 180 180 180 180 120 180 220 240 156 156 156 156 250 Overloaded Moves 8 | . . . . . 8 . . . . . . . . . Propulsion Burnouts . | . . . . . . . . . . . . . . . Robots Hopped . | . . . . . . . . . . . . . . . Cave-ins Triggered . | . . . . . . . . . . . . . . . Exploration Rate (%) 50 | 2 83 87 20 31 59 82 5 88 23 18 9 87 70 87 Regions Visited 14 Branch Regions 8 Pre-discovered Areas 7 | . . 1 . . 1 . . . . 1 1 . . 3 Known Exits Taken 4 | . 1 . . . . . 1 . . 1 1 . . . Unknown Exits Taken 10 | 1 . 1 1 1 1 1 . 1 1 . . 1 1 . Scrap Searched 7 | . . 1 . . . 1 . . . . . 2 3 . Spaces Dug 12 | . 3 . . . . . . 9 . . . . . . Terrain Destroyed 248 | . 78 12 . 5 15 17 . 71 . 3 . 5 10 32 Melee . | . . . . . . . . . . . . . . . Projectile 35 | . . . . . . . . 11 . 3 . 3 10 8 AOE 213 | . 78 12 . 5 15 17 . 60 . . . 2 . 24 Terrain Rammed . | . . . . . . . . . . . . . . . Walls Destroyed . | . . . . . . . . . . . . . . . Machines Disabled . | . . . . . . . . . . . . . . . Actions | -11 -10 -10 -9 -9 -9 -8 -8 -8 -7 -6 -5 -5 -5 -5 --------- Run | Scr Mat Min Mat Min Exi Min Mat Sto Fac Fac Fac Upp Upp War Total 7824 | . 566 764 188 226 617 450 65 901 794 618 209 831 670 925 Wait 464 | . 4 377 . . 4 . . 13 17 45 . 2 . 2 Move 6357 | . 473 367 149 197 459 432 58 665 648 514 198 781 635 781 Hop . | . . . . . . . . . . . . . . . Pick Up 119 | . 15 2 6 4 12 . 1 35 13 9 3 2 6 11 Fast Attach 66 | . 11 . 5 . 4 3 2 18 8 1 1 2 . 11 Attach 78 | . 3 3 1 1 11 1 1 15 6 4 1 1 2 28 Detach 16 | . 1 1 . . 2 2 1 5 . . . . . 4 Swap 64 | . 8 1 3 2 4 3 2 16 2 5 . 8 3 7 Drop 125 | . 7 1 9 4 17 . . 27 14 8 2 6 6 24 Fire 455 | . 41 12 15 18 54 9 . 104 84 31 4 8 18 57 Melee 23 | . . . . . 22 . . 1 . . . . . . Ram . | . . . . . . . . . . . . . . . Kick 29 | . . . . . 28 . . . . 1 . . . . Crush 7 | . 3 . . . . . . 2 2 . . . . . Escape Stasis . | . . . . . . . . . . . . . . . Rewire 21 | . . . . . . . . . . . . 21 . . Trap . | . . . . . . . . . . . . . . . Miscellaneous . | . . . . . . . . . . . . . . . Route ------- -11/Scrapyard -10/Materials (discovered 3 exits: *Mat x2 / *Min) -10/Mines (discovered 2 exits: *Mat x2) -9/Materials -9/Mines (discovered 3 exits: *Mat / *Exi / [*Zio]) -9/Exiles -8/Mines (discovered 2 exits: *Mat x2) -8/Materials (discovered 2 exits: *Sto x2) -8/Storage -7/Factory -6/Factory (discovered 2 exits: *Fac / *Low) -5/Factory -5/Upper Caves -5/Upper Caves (discovered 2 exits: [*Fac] / *War) -5/Warlord History --------- Turn | Location | Event 1 | -11/Scrapyard | Discovered new exit (range 0) 1 | -11/Scrapyard | Entered Materials 164 | -10/Materials | Identified exit to Mines 263 | -10/Materials | Discovered new exit (range 11) 318 | -10/Materials | Build established: Mutant 328 | -10/Materials | System corruption reached 10% 463 | -10/Materials | Discovered new exit (range 13) 828 | -10/Materials | Entered Mines 831 | -10/Mines | Met a Derelict bent on vengeance 939 | -10/Mines | A weapon hastily lodged in a ceiling crevice suddenly fell to the ground 1072 | -10/Mines | Discovered new exit (range 7) 1119 | -10/Mines | Discovered new exit (range 12) 1120 | -10/Mines | Learned location of Storage (-8) 1252 | -10/Mines | Assisted by bots powering up and referring to "LRC-V3" 1375 | -10/Mines | Excavation squad dispatched 1375 | -10/Mines | A large section of the Mines collapsed 1887 | -10/Mines | Entered Materials 1887 | -9/Materials | Accompanied by 1 ally 1887 | -9/Materials | Evolved 2 slots: Utility x2 2174 | -9/Materials | Discovered new exit (range 16) 2209 | -9/Materials | Entered Mines 2216 | -9/Mines | Met a Derelict shopkeep closing up shop 2269 | -9/Mines | A Derelict revealed a hidden shortcut to a safe place 2296 | -9/Mines | Learned Materials stockpile data 2399 | -9/Mines | Deemed a non-threat by the Exiles lab entrance 2399 | -9/Mines | Discovered new exit (range 5) 2477 | -9/Mines | Assembled infested the area 2485 | -9/Mines | Discovered new exit (range 9) 2612 | -9/Mines | Entered Exiles 2792 | -9/Exiles | Met 8R-AWN 2822 | -9/Exiles | Met EX-HEX 2871 | -9/Exiles | Met EX-BIN 2902 | -9/Exiles | Learned location of Zion (-7) 3076 | -9/Exiles | Met EX-DEC 3133 | -9/Exiles | Aligned with FarCom system 3135 | -9/Exiles | Given EX-Vault access code 3176 | -9/Exiles | Opened EX-Vault 3192 | -9/Exiles | Found Potential Leg 3195 | -9/Exiles | Found Potential Leg 3204 | -9/Exiles | Found Firepult 3229 | -9/Exiles | Warned to stay clear of 0b10 Research branches 3274 | -9/Exiles | Attacked by the Exiles 3424 | -9/Exiles | Core integrity fell below 50% 3470 | -9/Exiles | Lost 4 parts (2u2w) 3492 | -9/Exiles | Destroyed 8R-AWN 3504 | -9/Exiles | Found Prototype Ballistic Gun 3515 | -9/Exiles | Identified 8R-AWN's Boregun 3559 | -9/Exiles | Discovered new exit (range 14) 3572 | -9/Exiles | Entered Mines 3923 | -8/Mines | Discovered new exit (range 11) 4029 | -8/Mines | Discovered new exit (range 15) 4123 | -8/Mines | Entered Materials 4123 | -8/Materials | Evolved 2 slots: Utility x2 4124 | -8/Materials | Identified exit to Storage 4143 | -8/Materials | Discovered exit to Storage (range 12) 4233 | -8/Materials | Entered Storage 4244 | -8/Storage | Met 01-MTF 4426 | -8/Storage | Lost 5 parts (1p2n2w) 4480 | -8/Storage | Build established: Hauler-Mutant 4633 | -8/Storage | Garrison activated, responded to threat 4773 | -8/Storage | Garrison activated, responded to threat 4796 | -8/Storage | Lost 3 parts (1p1n1u) 4907 | -8/Storage | Garrison activated, responded to threat 5074 | -8/Storage | Core integrity fell below 50% 5368 | -8/Storage | Repaired Broken Rnf. Fission Core 5494 | -8/Storage | Assisted by bots powering up and referring to "LRC-V3" 5803 | -8/Storage | Build established: Commander-Mutant 5817 | -8/Storage | Discovered new exit (range 16) 5833 | -8/Storage | First assault squad dispatched 5903 | -8/Storage | Entered Factory 5903 | -7/Factory | Evolved 2 slots: Utility x2 6207 | -7/Factory | Build established: Hauler-Mutant 6541 | -7/Factory | Garrison activated, responded to threat 7405 | -7/Factory | Discovered new exit (range 14) 7522 | -7/Factory | Entered another Factory area 7522 | -6/Factory | Evolved 2 slots: Propulsion x1, Weapon x1 7814 | -6/Factory | Build established: Hauler-Tank 7865 | -6/Factory | Found Prototype Processor 7865 | -6/Factory | Identified Exp. Signal Interpreter 8156 | -6/Factory | Discovered new exit (range 16) 8168 | -6/Factory | Allied Derelicts emerged from ambush trap array 8180 | -6/Factory | Identified exit to Lower Caves 8229 | -6/Factory | Garrison activated, responded to threat 8405 | -6/Factory | Discovered new exit (range 5) 8481 | -6/Factory | Identified exit to Factory 8482 | -6/Factory | Entered another Factory area 8482 | -5/Factory | Evolved 2 slots: Utility x1, Weapon x1 8778 | -5/Factory | Discovered new exit (range 16) 8808 | -5/Factory | Identified exit to Upper Caves 8810 | -5/Factory | Entered Upper Caves 9116 | -5/Upper Caves | Attracted the attention of an 0b10 outpost 9152 | -5/Upper Caves | Destroyed 9 combat bots 9225 | -5/Upper Caves | Learned Factory emergency access door positions 9256 | -5/Upper Caves | Learned Factory non-interactive machine intel 9861 | -5/Upper Caves | Discovered new exit (range 7) 9898 | -5/Upper Caves | Attracted the attention of an 0b10 checkpoint 10095 | -5/Upper Caves | Entered another Upper Caves area 10095 | -5/Upper Caves | Accompanied by 2 allies 10156 | -5/Upper Caves | Discovered new exit (range 8) 10597 | -5/Upper Caves | Attracted the attention of an 0b10 checkpoint 10675 | -5/Upper Caves | Learned location of 2 exits from Factory 11132 | -5/Upper Caves | Discovered new exit (range 13) 11151 | -5/Upper Caves | Entered Warlord 11151 | -5/Warlord | Accompanied by 2 allies 11348 | -5/Warlord | Learned location of Armory (-4) 11348 | -5/Warlord | Learned location of Testing (-3) 11350 | -5/Warlord | Learned 4 Armory zone layouts 11353 | -5/Warlord | Learned Armory scanalyzer intel 11353 | -5/Warlord | Learned Research recycling unit intel 11887 | -5/Warlord | Visited the Vortex Lab 11889 | -5/Warlord | Warlord's base attacked by MAIN.C 11901 | -5/Warlord | Found Prototype Energy Cannon 11904 | -5/Warlord | Found Prototype Energy Cannon 12115 | -5/Warlord | Met Warlord 12154 | -5/Warlord | Found Prototype Device 12155 | -5/Warlord | Identified Exp. Phase Shifter 12162 | -5/Warlord | Found Prototype Device 12162 | -5/Warlord | Identified System Purifier 12168 | -5/Warlord | Found Prototype Processor 12191 | -5/Warlord | Identified Exp. Core Analyzer 12198 | -5/Warlord | Attacked by Warlord forces 12210 | -5/Warlord | Spotted VK-YPJ(K) 12231 | -5/Warlord | Destroyed VK-YPJ(K) 12239 | -5/Warlord | Warlord forces counterattacked 12241 | -5/Warlord | Destroyed Fake God Mode 12255 | -5/Warlord | Identified Vortex Cannon (x2) 12301 | -5/Warlord | Destroyed Warlord 12323 | -5/Warlord | Found Prototype Reactor 12332 | -5/Warlord | Lost 5 parts (1n4w) 12341 | -5/Warlord | Spotted G5-LTO(K) 12344 | -5/Warlord | Destroyed G5-LTO(K) 12358 | -5/Warlord | Found Prototype Processor 12359 | -5/Warlord | Identified Exp. Melee Analysis Suite 12362 | -5/Warlord | Found Hvy. Reflective Plating 12421 | -5/Warlord | Spotted Executioner 12439 | -5/Warlord | Spotted Executioner 12461 | -5/Warlord | Destroyed Executioner 12482 | -5/Warlord | Destroyed 8 combat bots 12517 | -5/Warlord | Spotted Executioner 12525 | -5/Warlord | Destroyed Executioner 12528 | -5/Warlord | Spotted B-86 Titan 12548 | -5/Warlord | Core integrity fell below 50% 12555 | -5/Warlord | Destroyed 8 combat bots 12578 | -5/Warlord | Core integrity fell below 20% 12583 | -5/Warlord | Spotted B-75 Beast 12584 | -5/Warlord | Spotted B-86 Titan 12586 | -5/Warlord | Destroyed by H-77 Assassin with High-powered Shotgun Last Messages --------------- 12578_ VTOL Module self-destruct mechanism malfunctions. 12578_ H-77 Assassin IFF system glitched. 12579_ ANNOUNCEMENT: MAIN.C reinforcements approaching through caves, arriving soon. 12580_ Dropped Prc. Rocket Launcher. 12580_ Dropped Lrg. Storage Unit. 12580_ Centrium Light Armor Plating destroyed. 12581_ Penetrated by Slug. 12581_ Slug penetrates Wall. 12581_ Critical hit. 12581_ Slug penetrates Wall. 12581_ Dropped Imp. Energy Well. 12581_ H-77 Assassin IFF system glitched. 12581_ Dropped 8R-AWN's Boregun. 12582_ Dropped Hrd. Medium Armor Plating. 12583_ Acquired 61 matter. 12584_ Exp. Phase Shifter destroyed. 12584_ Penetrated by Slug. 12586_ Slug penetrates Wall. 12586_ Cld. Gravmag System destroyed. Map ----- +----------------------------------------------------+ | ?????????????????????????????????????????????????? | | ?????????????????????????????????????????????????? | | ?????????????????##########??????????????????????? | | ?????????????????# #??????????????????????? | | ?????????????????# #??????????????????????? | | ?????????????????#^ #??????????????????????? | | ?????????????????# """ #??????????????????????? | | ?????????????????# """ #??????????????????????? | | ???????????????### """ #??????????????????????? | | ??############## " """ #??????????????????????? | | ??#""""""""""""##" """ #??????????????????????? | | ??#" #?# ! #??????????????????????? | | ??#" ^###!/#######??????????????????????? | | ??#" "* % %%### #??????????????????????? | | ??#"" % " !!][%=#[###????????????????????? | | ??# " =[ !=%%!= ###??????????????????? | | ??#" # !%=%[;"* ; ???????????????????? | | ??#" "# % !% #! ##???????????????????? | | ??#""""""" # # = !!] #??#?????????????????? | | ??######### # ## !!*!]## ###???????????????? | | ??#=! / #! # ##### !* ! # #???????????????? | | ??#= ]! ##???# [== ; ###""#???????????? | | ??# !!!!%]* #?????# ! ; "#???????????? | | ??# ! ! "!]! #?????# ! #???????????? | | ??#== ! =#! #?????## = "#####???????? | | ??##############?????#![=@ "######### | | ?????????????????###?#%*! = """"""""" | | ###???############ ###!=[ =!! % %% """"""""" | | ??# !=]!!]%== = = BB | | ? + *%==!==!BB h BB | | ?# [!*h% !!!%!%[%BBh BB% | | ?# =%%!h% ]%!%!! %! % BB | | # ########=##!==*!% "" % """""""""" | | ]]] # ## !% # =%!% # "" """""""""" | | + ## % ; = # "" "######### | | /// # ## % #### %#######""#####???????? | | #^ ^## %= #??# #?????#""#???????????? | | ####### ## #??#= #?????#""#???????????? | | # + #??#%[ #??????""????????????? | | """" + ## #??#!! #????????????????????? | | """"" # # #??#% #????????????????????? | | "" " +^ ####+######### #????????????????????? | | ## #??# #????????????????????? | | """" ## #### #????????????????????? | | """" ## #????????????????????? | | """" ##+######## ####### ###????????????????????? | | ? ## ??# #?????###??????????????????????? | | ?####### ?# #??????????????????????????????? | | ???????# ?# #???#########??????????????????? | | ???????# # #???#"""""""#??????????????????? | +----------------------------------------------------+ Best States ------------- Heat Dissipation 84 Energy Generation 29 Energy Capacity 910 Matter Stores 300 Matter Capacity 300 Sight Range 16 Robot Scan Range 16 Terrain Scan Range 14 Terrain Scan Density 85 Armor Coverage 600 Resistance: KI 30 Resistance: TH 25 Weapon Shielding 66 Phase Shifting 20 Evasion (%) 60 Targeting Accuracy 5 Melee Accuracy 12 Target Analysis 5 Core Analysis 15 Armor Integrity Analysis 66 Recoil Reduction 2 Energy Filtering 30 Overload Regulation 40 Defensive Hacking 10 Item Schematics ----------------- None Robot Schematics ------------------ None Fabricated ------------ Nothing Alien Tech Used ----------------- None Achievements -------------- None Challenges ------------ None Game ------ Seed GaussOmegaMicroactuators Manual? 0 Play Time 01:25:54 Cumulative 159.6 hours Start 2020.12.19 @ 16:53:07 End 2020.12.19 @ 18:32:23 Sessions 1 Manual Loads 0 Difficulty Rogue Special Mode None Game No. 160 Rogue 153 Adventurer 0 Explorer 7 Win Type - Total 3 Types 0/0/3/0/0/0/0/0/0 Lore% 59 Gallery% 87 Achievement% 64 Wizard Run 0 Options --------- ASCII 0 Keyboard 0 Movement Mouse Keybinds 0 Fullscreen 1 Font 18/X11 Map View 76x50 Tactical HUD 1 Map Filters NONE Filters NONE Steam 1 RUN: a8a6f286-29bf-49b5-a891-8080bacb3b21